fUSD/lending_fUSD_20250723
["ID","MTS","AMOUNT","RATE_DAILY","PERIOD"]
[374143700,1753229454911,-1210.0,0.00030095,7]
[374143701,1753229454920,-1210.0,0.00030095,7]
[374143702,1753229454930,-1210.0,0.00030095,7]
[374143703,1753229454940,-1210.0,0.00030095,7]
[374143704,1753229454950,-496.99933764,0.00030095,7]
[374143705,1753229454960,-277.057802,0.00030095,7]
[374143706,1753229454970,-277.057802,0.00030095,7]
[374143707,1753229454979,-151.0,0.00030095,7]
[374143708,1753229454989,-152.19017,0.00030095,7]
[374143709,1753229454999,-152.19017,0.00030095,7]
[374143710,1753229455010,-153.0,0.00030095,7]
[374143711,1753229455020,-1000.0,0.00030095,2]
[374143712,1753229455030,-151.0,0.00030099,7]
[374143713,1753229455041,-151.0,0.00030099,7]
[374143714,1753229455050,-151.0,0.00030099,7]
[374143715,1753229455060,-151.0,0.00030099,7]
[374143716,1753229455071,-388.200293,0.00030099,7]
[374143717,1753229455081,-388.200293,0.00030099,7]
[374143718,1753229455091,-151.0,0.00030099,7]
[374143719,1753229455101,-185.775426,0.00030099,7]
[374143720,1753229455111,-185.775426,0.00030099,7]
[374143721,1753229455123,-195.599168,0.00030099,7]
[374143722,1753229455133,-151.0,0.00030099,7]
[374143723,1753229455144,-151.0,0.00030099,7]
[374143724,1753229455155,-277.057802,0.00030099,7]
[374143725,1753229455377,-277.057802,0.00030099,7]
[374143726,1753229455387,-151.0,0.00030099,7]
[374143727,1753229455397,-152.19017,0.00030099,7]
[374143728,1753229455407,-152.19017,0.00030099,7]
[374143729,1753229455417,-64588.60165347,0.000301,7]
[374143730,1753229455427,-151.0,0.000301,7]
[374143731,1753229455437,-151.0,0.000301,7]
[374143732,1753229455447,-151.0,0.000301,7]
[374143733,1753229455458,-151.0,0.000301,7]
[374143734,1753229455467,-151.0,0.000301,7]
[374143735,1753229455477,-151.0,0.000301,7]
[374143736,1753229455487,-388.200293,0.000301,7]
[374143737,1753229455498,-388.200293,0.000301,7]
[374143738,1753229455508,-151.0,0.000301,7]
[374143739,1753229455518,-185.775426,0.000301,7]
[374143740,1753229455529,-185.775426,0.000301,7]
[374143741,1753229455538,-151.0,0.000301,7]
[374143742,1753229455548,-258.462124,0.000301,7]
[374143743,1753229455558,-277.057802,0.000301,7]
[374143744,1753229455568,-277.057804,0.000301,7]
[374143745,1753229455577,-151.0,0.000301,7]
[374143746,1753229455587,-152.19017,0.000301,7]
[374143747,1753229455597,-152.19018,0.000301,7]
[374143748,1753229455606,-150.0,0.00030105,2]
[374143749,1753229455616,-229.892088,0.00030105,7]
[374143750,1753229455625,-151.0,0.00030105,7]
[374143751,1753229455635,-151.0,0.00030105,7]
[374143752,1753229455644,-151.0,0.00030105,7]
[374143753,1753229455653,-151.0,0.00030105,7]
[374143754,1753229455663,-151.0,0.00030105,7]
[374143755,1753229455672,-151.0,0.00030105,7]
[374143756,1753229455681,-388.200293,0.00030105,7]
[374143757,1753229455692,-388.200293,0.00030105,7]
[374143758,1753229455701,-388.200293,0.00030105,7]
[374143759,1753229455710,-388.200293,0.00030105,7]
[374143760,1753229455720,-151.0,0.00030105,7]
[374143761,1753229455730,-151.0,0.00030105,7]
[374143762,1753229455740,-185.775426,0.00030105,7]
[374143763,1753229455749,-185.775426,0.00030105,7]
[374143764,1753229455758,-185.775426,0.00030105,7]
[374143765,1753229455768,-185.775426,0.00030105,7]
[374143766,1753229455777,-151.0,0.00030105,7]
[374143767,1753229455788,-151.04399161,0.00030105,2]
[374143768,1753229455798,-1200.70766072,0.00030105,2]
[374143769,1753229455807,-40784.0,0.0003011,2]
[374143770,1753229455816,-12325.0,0.0003011,2]
[374143771,1753229455826,-151.0,0.0003011,7]
[374143772,1753229455836,-151.0,0.0003011,7]
[374143773,1753229455846,-151.0,0.0003011,7]
[374143774,1753229455856,-151.0,0.0003011,7]
[374143775,1753229455866,-151.0,0.0003011,7]
[374143776,1753229455875,-388.200293,0.0003011,7]
[374143777,1753229455884,-388.20029,0.0003011,7]
[374143778,1753229455894,-252.859603,0.00030115,7]
[374143779,1753229455904,-187.976472,0.00030115,7]
[374143780,1753229455913,-1841.999997,0.00030115,2]
[374143781,1753229455923,-302.87,0.00030125,2]
[374143782,1753229455933,-357.77,0.00030125,2]
[374143783,1753229455943,-458.78,0.00030125,2]
[374143784,1753229455953,-172.26,0.00030125,2]
[374143785,1753229455963,-164.82,0.00030125,2]
[374143786,1753229455974,-150.0,0.00030126,7]
[374143787,1753229455984,-150.0,0.00030126,2]
[374143788,1753229455994,-150.0,0.00030126,3]
[374143789,1753229456004,-150.0,0.00030127,2]
[374143790,1753229456013,-300.0,0.00030135,10]
[374143791,1753229456023,-300.0,0.00030135,10]
[374143792,1753229456033,-300.0,0.00030135,10]
[374143793,1753229456043,-666.0,0.00030135,10]
[374143794,1753229456052,-666.0,0.00030135,10]
[374143795,1753229456062,-300.0,0.00030135,10]
[374143796,1753229456071,-300.0,0.00030135,10]
[374143797,1753229456080,-300.0,0.00030135,10]
[374143798,1753229456090,-5000.0,0.00030135,2]
[374143799,1753229456100,-5000.0,0.00030135,2]
[374143800,1753229456109,-5000.0,0.00030135,2]
[374143801,1753229456118,-5000.0,0.00030135,2]
[374143802,1753229456127,-5082.26827478,0.00030135,2]
[374143803,1753229456137,-150.0,0.00030135,10]
[374143804,1753229456147,-1700.43,0.00030135,2]
[374143805,1753229456157,-1700.43,0.00030135,2]
[374143806,1753229456166,-161.815186,0.00030136,14]
[374143807,1753229456176,-158.478467,0.00030136,14]
[374143808,1753229456185,-384.300792,0.00030136,14]
[374143809,1753229456195,-241.09834,0.00030136,14]
[374143810,1753229456204,-208.533309,0.00030136,14]
[374143811,1753229456213,-167.762756,0.00030136,14]
[374143812,1753229456223,-400.0,0.00030136,14]
[374143813,1753229456232,-400.0,0.00030136,14]
[374143814,1753229456242,-438.6,0.00030136,14]
[374143815,1753229456251,-400.0,0.00030136,14]
[374143816,1753229456262,-400.0,0.00030136,14]
[374143817,1753229456273,-400.0,0.00030136,14]
[374143818,1753229456282,-400.0,0.00030136,14]
[374143819,1753229456292,-400.0,0.00030136,14]
[374143820,1753229456302,-400.0,0.00030136,14]
[374143821,1753229456312,-400.0,0.00030136,14]
[374143822,1753229456321,-400.0,0.00030136,14]
[374143823,1753229456331,-400.0,0.00030136,14]
[374143824,1753229456342,-400.0,0.00030136,14]
[374143825,1753229456352,-400.0,0.00030136,14]
[374143826,1753229456361,-400.0,0.00030136,14]
[374143827,1753229456371,-400.0,0.00030136,14]
[374143828,1753229456380,-400.0,0.00030136,14]
[374143829,1753229456389,-400.0,0.00030136,14]
[374143830,1753229456399,-400.0,0.00030136,14]
[374143831,1753229456408,-400.0,0.00030136,14]
[374143832,1753229456417,-400.0,0.00030136,14]
[374143833,1753229456427,-400.0,0.00030136,14]
[374143834,1753229456436,-400.0,0.00030136,14]
[374143835,1753229456446,-415.57,0.00030136,14]
[374143836,1753229456455,-500.0,0.00030136,14]
[374143837,1753229456464,-500.0,0.00030136,14]
[374143838,1753229456474,-500.0,0.00030136,14]
[374143839,1753229456484,-500.0,0.00030136,14]
[374143840,1753229456495,-500.0,0.00030136,14]
[374143841,1753229456504,-500.0,0.00030136,14]
[374143842,1753229456513,-500.0,0.00030136,14]
[374143843,1753229456522,-500.0,0.00030136,14]
[374143844,1753229456532,-432.95,0.00030136,14]
[374143845,1753229456543,-400.0,0.00030136,14]
[374143846,1753229456552,-461.11846143,0.00030136,14]
[374143847,1753229456562,-400.0,0.00030136,14]
[374143848,1753229456571,-400.0,0.00030136,14]
[374143849,1753229456580,-400.0,0.00030136,14]
[374143850,1753229456590,-196.09406949,0.00030136,14]
[374143851,1753229456599,-400.0,0.00030136,14]
[374143852,1753229456609,-400.0,0.00030136,14]
[374143853,1753229456620,-500.0,0.00030136,14]
[374143854,1753229456630,-500.0,0.00030136,14]
[374143855,1753229456640,-500.0,0.00030136,14]
[374143856,1753229456651,-500.0,0.00030136,14]
[374143857,1753229456660,-480.0,0.00030136,14]
[374143858,1753229456671,-400.0,0.00030136,14]
[374143859,1753229456680,-400.0,0.00030136,14]
[374143860,1753229456690,-400.0,0.00030136,14]
[374143861,1753229456701,-400.0,0.00030136,14]
[374143862,1753229456711,-400.0,0.00030136,14]
[374143863,1753229456721,-400.0,0.00030136,14]
[374143864,1753229456730,-460.0,0.00030136,14]
[374143865,1753229456740,-400.0,0.00030136,14]
[374143866,1753229456750,-400.0,0.00030136,14]
[374143867,1753229456759,-259.242058,0.00030136,14]
[374143868,1753229456769,-480.0,0.00030136,14]
[374143869,1753229456778,-1000.0,0.00030136,14]
[374143870,1753229456787,-400.0,0.00030136,14]
[374143871,1753229456798,-400.0,0.00030136,14]
[374143872,1753229456808,-400.0,0.00030136,14]
[374143873,1753229456818,-436.15,0.00030136,14]
[374143874,1753229456827,-400.0,0.00030136,14]
[374143875,1753229456836,-400.0,0.00030136,14]
[374143876,1753229456846,-400.0,0.00030136,14]
[374143877,1753229456856,-460.0,0.00030136,14]
[374143878,1753229456865,-400.0,0.00030136,14]
[374143879,1753229456875,-400.0,0.00030136,3]
[374143880,1753229456884,-284.95800773,0.00030136,14]
[374143881,1753229456895,-400.0,0.00030136,14]
[374143882,1753229456904,-400.0,0.00030136,14]
[374143883,1753229456913,-400.0,0.00030136,14]
[374143884,1753229456923,-400.0,0.00030136,14]
[374143885,1753229456932,-448.14846497,0.00030136,14]
[374143886,1753229456942,-400.0,0.00030136,14]
[374143887,1753229456952,-400.0,0.00030136,14]
[374143888,1753229456962,-400.0,0.00030136,14]
[374143889,1753229456971,-400.0,0.00030136,14]
[374143890,1753229456981,-460.0,0.00030136,14]
[374143891,1753229456991,-400.0,0.00030136,14]
[374143892,1753229457000,-218.2206099,0.00030136,14]
[374143893,1753229457010,-400.0,0.00030136,14]
[374143894,1753229457020,-400.0,0.00030136,14]
[374143895,1753229457030,-523.7399888,0.00030136,14]
[374143896,1753229457040,-480.0,0.00030136,14]
[374143897,1753229457050,-490.0,0.00030136,14]
[374143898,1753229457059,-460.0,0.00030136,14]
[374143899,1753229457069,-400.0,0.00030136,14]
[374143900,1753229457078,-400.0,0.00030136,14]
[374143901,1753229457088,-150.95474995,0.00030136,14]
[374143902,1753229457098,-400.0,0.00030136,14]
[374143903,1753229457108,-400.0,0.00030136,14]
[374143904,1753229457128,-400.0,0.00030136,14]
[374143905,1753229457137,-400.0,0.00030136,14]
[374143906,1753229457148,-400.0,0.00030136,14]
[374143907,1753229457158,-400.0,0.00030136,14]
[374143908,1753229457168,-1000.0,0.00030136,2]
[374143909,1753229457180,-400.0,0.00030136,14]
[374143910,1753229457190,-480.0,0.00030136,14]
[374143911,1753229457199,-400.0,0.00030136,14]
[374143912,1753229457208,-461.6350367,0.00030136,14]
[374143913,1753229457218,-400.0,0.00030136,14]
[374143914,1753229457228,-925.71,0.00030136,14]
[374143915,1753229457238,-576.32,0.00030136,14]
[374143916,1753229457247,-460.0,0.00030136,14]
[374143917,1753229457257,-400.0,0.00030136,14]
[374143918,1753229457270,-181.78505542,0.00030136,14]
[374143919,1753229457279,-400.0,0.00030136,14]
[374143920,1753229457290,-879.92,0.00030136,14]
[374143921,1753229457299,-400.0,0.00030136,14]
[374143922,1753229457310,-520.03594645,0.00030136,14]
[374143923,1753229457320,-400.0,0.00030136,14]
[374143924,1753229457331,-200.0,0.00030136,14]
[374143925,1753229457350,-400.0,0.00030136,14]
[374143926,1753229457360,-400.0,0.00030136,14]
[374143927,1753229457370,-400.0,0.00030136,14]
[374143928,1753229457380,-400.0,0.00030136,14]
[374143929,1753229457389,-400.0,0.00030136,14]
[374143930,1753229457398,-400.0,0.00030136,14]
[374143931,1753229457408,-500.0,0.00030136,14]
[374143932,1753229457417,-400.0,0.00030136,14]
[374143933,1753229457427,-521.76289054,0.00030136,14]
[374143934,1753229457436,-400.0,0.00030136,14]
[374143935,1753229457446,-400.0,0.00030136,14]
[374143936,1753229457456,-400.0,0.00030136,14]
[374143937,1753229457466,-1059.82,0.00030136,14]
[374143938,1753229457477,-400.0,0.00030136,14]
[374143939,1753229457487,-534.21,0.00030136,14]
[374143940,1753229457497,-441.73600397,0.00030136,14]
[374143941,1753229457511,-400.0,0.00030136,14]
[374143942,1753229457520,-400.0,0.00030136,14]
[374143943,1753229457529,-494.30248967,0.00030136,14]
[374143944,1753229457539,-400.0,0.00030136,14]
[374143945,1753229457549,-400.0,0.00030136,14]
[374143946,1753229457558,-363.60922175,0.00030136,14]
[374143947,1753229457567,-400.0,0.00030136,14]
[374143948,1753229457577,-400.0,0.00030136,14]
[374143949,1753229457586,-509.45234541,0.00030136,14]
[374143950,1753229457596,-400.0,0.00030136,14]
[374143951,1753229457608,-400.0,0.00030136,14]
[374143952,1753229457617,-400.0,0.00030136,14]
[374143953,1753229457626,-400.0,0.00030136,14]
[374143954,1753229457636,-400.0,0.00030136,14]
[374143955,1753229457648,-400.0,0.00030136,14]
[374143956,1753229457658,-400.0,0.00030136,14]
[374143957,1753229457669,-400.0,0.00030136,14]
[374143958,1753229457678,-400.0,0.00030136,14]
[374143959,1753229457688,-440.0,0.00030136,14]
[374143960,1753229457697,-400.0,0.00030136,14]
[374143961,1753229457707,-400.0,0.00030136,14]
[374143962,1753229457717,-400.0,0.00030136,14]
[374143963,1753229457726,-400.0,0.00030136,14]
[374143964,1753229457735,-553.59,0.00030136,14]
[374143965,1753229457745,-424.89,0.00030136,14]
[374143966,1753229457754,-454.48,0.00030136,14]
[374143967,1753229457763,-400.0,0.00030136,14]
[374143968,1753229457773,-621.14,0.00030136,14]
[374143969,1753229457783,-400.0,0.00030136,14]
[374143970,1753229457792,-400.0,0.00030136,14]
[374143971,1753229457802,-400.0,0.00030136,14]
[374143972,1753229457811,-480.0,0.00030136,14]
[374143973,1753229457821,-400.0,0.00030136,14]
[374143974,1753229457830,-400.0,0.00030136,14]
[374143975,1753229457840,-522.86,0.00030136,14]
[374143976,1753229457849,-400.0,0.00030136,14]
[374143977,1753229457859,-400.0,0.00030136,14]
[374143978,1753229457872,-400.0,0.00030136,14]
[374143979,1753229457882,-483.33,0.00030136,14]
[374143980,1753229457891,-400.0,0.00030136,14]
[374143981,1753229457901,-1083.91,0.00030136,14]
[374143982,1753229457912,-464.0969804,0.00030136,14]
[374143983,1753229457925,-400.0,0.00030136,14]
[374143984,1753229457935,-400.0,0.00030136,14]
[374143985,1753229457945,-404.48529884,0.00030136,14]
[374143986,1753229457954,-1140.0,0.00030136,14]
[374143987,1753229457964,-500.0,0.00030136,14]
[374143988,1753229457973,-605.96,0.00030136,14]
[374143989,1753229457983,-400.0,0.00030136,14]
[374143990,1753229457992,-400.0,0.00030136,14]
[374143991,1753229458001,-184.57032347,0.00030136,14]
[374143992,1753229458010,-400.0,0.00030136,14]
[374143993,1753229458019,-456.16,0.00030136,14]
[374143994,1753229458028,-461.22213535,0.00030136,14]
[374143995,1753229458038,-400.0,0.00030136,14]
[374143996,1753229458048,-400.0,0.00030136,14]
[374143997,1753229458057,-400.0,0.00030136,14]
[374143998,1753229458067,-400.0,0.00030136,14]
[374143999,1753229458076,-400.0,0.00030136,14]
[374144000,1753229458085,-400.0,0.00030136,14]
[374144001,1753229458096,-400.0,0.00030136,14]
[374144002,1753229458105,-400.0,0.00030136,14]
[374144003,1753229458115,-400.0,0.00030136,14]
[374144004,1753229458124,-500.0,0.00030136,14]
[374144005,1753229458133,-150.0,0.00030136,14]
[374144006,1753229458143,-839.09,0.00030136,14]
[374144007,1753229458152,-400.0,0.00030136,14]
[374144008,1753229458161,-400.0,0.00030136,14]
[374144009,1753229458171,-880.81,0.00030136,14]
[374144010,1753229458180,-400.0,0.00030136,14]
[374144011,1753229458190,-400.0,0.00030136,14]
[374144012,1753229458199,-400.0,0.00030136,14]
[374144013,1753229458208,-400.0,0.00030136,14]
[374144014,1753229458218,-400.0,0.00030136,14]
[374144015,1753229458227,-400.0,0.00030136,14]
[374144016,1753229458237,-400.0,0.00030136,2]
[374144017,1753229458246,-400.0,0.00030136,14]
[374144018,1753229458256,-400.0,0.00030136,14]
[374144019,1753229458268,-400.0,0.00030136,14]
[374144020,1753229458278,-400.0,0.00030136,14]
[374144021,1753229458288,-400.0,0.00030136,14]
[374144022,1753229458300,-400.0,0.00030136,14]
[374144023,1753229458311,-400.0,0.00030136,14]
[374144024,1753229458320,-400.0,0.00030136,14]
[374144025,1753229458330,-522.57741611,0.00030136,14]
[374144026,1753229458340,-400.0,0.00030136,14]
[374144027,1753229458351,-400.0,0.00030136,14]
[374144028,1753229458362,-488.4,0.00030136,14]
[374144029,1753229458371,-1581.09,0.00030136,14]
[374144030,1753229458380,-400.0,0.00030136,14]
[374144031,1753229458390,-400.0,0.00030136,14]
[374144032,1753229458399,-400.0,0.00030136,14]
[374144033,1753229458409,-2003.39,0.00030136,14]
[374144034,1753229458419,-400.0,0.00030136,14]
[374144035,1753229458428,-500.0,0.00030136,2]
[374144036,1753229458438,-500.0,0.00030136,2]
[374144037,1753229458448,-500.0,0.00030136,2]
[374144038,1753229458458,-500.0,0.00030136,2]
[374144039,1753229458469,-400.0,0.00030136,14]
[374144040,1753229458479,-500.0,0.00030136,2]
[374144041,1753229458489,-500.0,0.00030136,2]
[374144042,1753229458499,-429.78,0.00030136,14]
[374144043,1753229458509,-400.0,0.00030136,14]
[374144044,1753229458518,-300.67068265,0.00030136,14]
[374144045,1753229458527,-400.0,0.00030136,14]
[374144046,1753229458537,-400.0,0.00030136,14]
[374144047,1753229458547,-652.22,0.00030136,14]
[374144048,1753229458557,-500.0,0.00030136,2]
[374144049,1753229458566,-500.0,0.00030136,2]
[374144050,1753229458576,-542.14036608,0.00030136,14]
[374144051,1753229458586,-400.0,0.00030136,14]
[374144052,1753229458596,-457.63,0.00030136,14]
[374144053,1753229458605,-400.0,0.00030136,14]
[374144054,1753229458614,-400.0,0.00030136,14]
[374144055,1753229458624,-438.65,0.00030136,14]
[374144056,1753229458633,-500.0,0.00030136,14]
[374144057,1753229458643,-500.0,0.00030136,14]
[374144058,1753229458652,-237.43740879,0.00030136,14]
[374144059,1753229458662,-400.0,0.00030136,14]
[374144060,1753229458867,-400.0,0.00030136,14]
[374144061,1753229458876,-749.69,0.00030136,14]
[374144062,1753229458886,-494.68243391,0.00030136,14]
[374144063,1753229458895,-400.0,0.00030136,14]
[374144064,1753229458904,-400.0,0.00030136,14]
[374144065,1753229458913,-400.0,0.00030136,14]
[374144066,1753229458922,-480.0,0.00030136,2]
[374144067,1753229458931,-400.0,0.00030136,14]
[374144068,1753229458941,-400.0,0.00030136,14]
[374144069,1753229458952,-501.03,0.00030136,14]
[374144070,1753229458962,-500.0,0.00030136,14]
[374144071,1753229458971,-500.0,0.00030136,14]
[374144072,1753229458981,-480.0,0.00030136,14]
[374144073,1753229458991,-500.0,0.00030136,14]
[374144074,1753229459000,-402.39,0.00030136,14]
[374144075,1753229459010,-500.0,0.00030136,14]
[374144076,1753229459019,-400.0,0.00030136,14]
[374144077,1753229459028,-500.0,0.00030136,14]
[374144078,1753229459037,-500.0,0.00030136,14]
[374144079,1753229459048,-305.56832714,0.00030136,14]
[374144080,1753229459058,-500.0,0.00030136,14]
[374144081,1753229459066,-500.0,0.00030136,14]
[374144082,1753229459075,-505.27,0.00030136,14]
[374144083,1753229459085,-460.0,0.00030136,14]
[374144084,1753229459096,-585.1,0.00030136,14]
[374144085,1753229459105,-463.22420949,0.00030136,14]
[374144086,1753229459115,-400.0,0.00030136,14]
[374144087,1753229459124,-400.0,0.00030136,14]
[374144088,1753229459135,-400.0,0.00030136,14]
[374144089,1753229459144,-767.48,0.00030136,14]
[374144090,1753229459154,-400.0,0.00030136,14]
[374144091,1753229459163,-400.0,0.00030136,14]
[374144092,1753229459175,-160.0,0.00030136,14]
[374144093,1753229459186,-417.05,0.00030136,14]
[374144094,1753229459196,-400.0,0.00030136,14]
[374144095,1753229459205,-400.0,0.00030136,14]
[374144096,1753229459215,-400.0,0.00030136,14]
[374144097,1753229459225,-400.0,0.00030136,14]
[374144098,1753229459235,-568.11,0.00030136,14]
[374144099,1753229459244,-400.0,0.00030136,14]
[374144100,1753229459253,-400.0,0.00030136,14]
[374144101,1753229459264,-400.0,0.00030136,14]
[374144102,1753229459275,-462.99934235,0.00030136,14]
[374144103,1753229459285,-603.56,0.00030136,14]
[374144104,1753229459298,-400.0,0.00030136,14]
[374144105,1753229459307,-503.82,0.00030136,14]
[374144106,1753229459317,-400.0,0.00030136,14]
[374144107,1753229459326,-400.0,0.00030136,14]
[374144108,1753229459337,-591.75,0.00030136,14]
[374144109,1753229459346,-400.0,0.00030136,14]
[374144110,1753229459355,-400.0,0.00030136,14]
[374144111,1753229459365,-400.0,0.00030136,14]
[374144112,1753229459375,-400.0,0.00030136,14]
[374144113,1753229459384,-400.0,0.00030136,14]
[374144114,1753229459394,-400.0,0.00030136,14]
[374144115,1753229459404,-400.0,0.00030136,14]
[374144116,1753229459415,-400.0,0.00030136,14]
[374144117,1753229459425,-694.22,0.00030136,14]
[374144118,1753229459434,-400.0,0.00030136,14]
[374144119,1753229459443,-400.0,0.00030136,14]
[374144120,1753229459453,-1772.51,0.00030136,14]
[374144121,1753229459462,-540.13,0.00030136,14]
[374144122,1753229459471,-583.06,0.00030136,14]
[374144123,1753229459482,-400.0,0.00030136,14]
[374144124,1753229459492,-268.98091763,0.00030136,14]
[374144125,1753229459502,-400.0,0.00030136,14]
[374144126,1753229459511,-400.0,0.00030136,14]
[374144127,1753229459522,-400.0,0.00030136,14]
[374144128,1753229459533,-400.0,0.00030136,14]
[374144129,1753229459543,-400.0,0.00030136,14]
[374144130,1753229459553,-484.65,0.00030136,14]
[374144131,1753229459563,-400.0,0.00030136,14]
[374144132,1753229459574,-400.0,0.00030136,14]
[374144133,1753229459583,-400.0,0.00030136,14]
[374144134,1753229459594,-400.0,0.00030136,14]
[374144135,1753229459605,-1460.81,0.00030136,14]
[374144136,1753229459614,-802.41,0.00030136,14]
[374144137,1753229459623,-400.0,0.00030136,14]
[374144138,1753229459632,-400.0,0.00030136,14]
[374144139,1753229459642,-400.0,0.00030136,14]
[374144140,1753229459651,-400.0,0.00030136,14]
[374144141,1753229459660,-400.0,0.00030136,14]
[374144142,1753229459670,-400.0,0.00030136,14]
[374144143,1753229459680,-471.97,0.00030136,14]
[374144144,1753229459690,-400.0,0.00030136,14]
[374144145,1753229459700,-400.0,0.00030136,14]
[374144146,1753229459710,-400.0,0.00030136,14]
[374144147,1753229459719,-400.0,0.00030136,14]
[374144148,1753229459728,-400.0,0.00030136,14]
[374144149,1753229459738,-400.0,0.00030136,14]
[374144150,1753229459750,-400.0,0.00030136,14]
[374144151,1753229459760,-400.0,0.00030136,14]
[374144152,1753229459771,-9203.93,0.00030136,14]
[374144153,1753229459782,-400.0,0.00030136,14]
[374144154,1753229459791,-400.0,0.00030136,14]
[374144155,1753229459801,-400.0,0.00030136,14]
[374144156,1753229459810,-677.18,0.00030136,14]
[374144157,1753229459820,-400.0,0.00030136,14]
[374144158,1753229459836,-400.0,0.00030136,14]
[374144159,1753229459846,-400.0,0.00030136,14]
[374144160,1753229459856,-400.0,0.00030136,14]
[374144161,1753229459866,-400.0,0.00030136,14]
[374144162,1753229459876,-400.0,0.00030136,14]
[374144163,1753229459887,-575.96,0.00030136,14]
[374144164,1753229459896,-591.87,0.00030136,14]
[374144165,1753229459907,-400.0,0.00030136,14]
[374144166,1753229459917,-425.56,0.00030136,14]
[374144167,1753229459927,-549.75,0.00030136,14]
[374144168,1753229459938,-503.22,0.00030136,14]
[374144169,1753229459949,-400.0,0.00030136,14]
[374144170,1753229459959,-202.77268779,0.00030136,14]
[374144171,1753229459969,-1380.8,0.00030136,14]
[374144172,1753229459979,-400.0,0.00030136,14]
[374144173,1753229459990,-460.48448806,0.00030136,14]
[374144174,1753229460000,-435.87,0.00030136,14]
[374144175,1753229460010,-400.0,0.00030136,14]
[374144176,1753229460020,-400.0,0.00030136,14]
[374144177,1753229460030,-400.0,0.00030136,14]
[374144178,1753229460040,-400.0,0.00030136,14]
[374144179,1753229460051,-400.0,0.00030136,14]
[374144180,1753229460061,-400.0,0.00030136,14]
[374144181,1753229460071,-400.0,0.00030136,14]
[374144182,1753229460082,-472.17,0.00030136,14]
[374144183,1753229460092,-433.48389748,0.00030136,14]
[374144184,1753229460101,-400.0,0.00030136,14]
[374144185,1753229460112,-845.54,0.00030136,14]
[374144186,1753229460122,-581.88,0.00030136,14]
[374144187,1753229460132,-442.69559299,0.00030136,14]
[374144188,1753229460142,-400.0,0.00030136,14]
[374144189,1753229460152,-698.11,0.00030136,14]
[374144190,1753229460161,-1148.77,0.00030136,14]
[374144191,1753229460171,-400.0,0.00030136,14]
[374144192,1753229460180,-400.0,0.00030136,14]
[374144193,1753229460190,-400.0,0.00030136,14]
[374144194,1753229460199,-400.0,0.00030136,14]
[374144195,1753229460209,-400.0,0.00030136,14]
[374144196,1753229460218,-400.0,0.00030136,14]
[374144197,1753229460228,-400.0,0.00030136,14]
[374144198,1753229460237,-400.0,0.00030136,14]
[374144199,1753229460246,-400.0,0.00030136,14]